bitfinex-derivatives/quotes_ETHF0:USTF0_20250621
["timestamp","ask_amount","ask_price","bid_price","bid_amount"]
[1750480951968,1.23754,2423.9,2423.8,8.60573302]
[1750480952570,1.4133,2424.2,2424.0,1.23746]
[1750480952571,1.23741,2424.2,2424.0,1.23746]
[1750480952775,3.2078,2424.3,2424.0,3.62000362]
[1750480953167,1.23739,2424.2,2424.1,0.651]
[1750480956773,2.64919,2424.2,2424.1,0.651]
[1750480960173,1.23749,2424.0,2423.9,1.23751]
[1750480960473,1.23749,2424.0,2423.9,0.6489]
[1750480964080,1.23754,2423.9,2423.8,9.09967664]
[1750480964280,1.23754,2423.9,2423.8,11.04607664]
[1750480965480,1.23752,2424.0,2423.8,9.80847664]
[1750480965781,1.23752,2424.0,2423.9,1.23754]
[1750480966782,2.55228,2424.1,2423.9,1.23754]
[1750480966976,1.23748,2424.1,2423.9,1.23754]
[1750480967870,3.2078,2424.2,2424.1,1.23744]
[1750480968074,2.60269,2424.3,2424.1,1.23744]
[1750480968286,1.23739,2424.2,2424.1,1.89174]
[1750480968486,2.45884734,2424.2,2424.1,1.89174]
[1750480971788,1.22145734,2424.2,2424.1,1.89174]
[1750480972386,2.45884734,2424.2,2424.1,1.89174]
[1750480973781,2.45884734,2424.2,2424.1,0.6543]
[1750480974589,2.45884734,2424.2,2424.1,1.89174]
[1750480974780,2.45884734,2424.2,2424.1,0.6543]
[1750480978200,1.23754,2423.9,2423.8,6.71713302]
[1750480978400,1.23753,2424.0,2423.8,8.31887]
[1750480978699,2.61667,2424.1,2423.9,1.23752]
[1750480978900,1.23749,2424.0,2423.9,1.23752]
[1750480980899,2.61668,2424.1,2423.9,1.23752]
[1750480981101,1.23749,2424.0,2423.9,1.23752]
[1750480982004,2.61668,2424.1,2423.9,3.62006362]
[1750480984208,1.23749,2424.0,2423.9,3.62006362]
[1750480985201,2.61667,2424.1,2423.9,3.62006362]
[1750480986209,1.23749,2424.0,2423.9,3.62006362]
[1750480986812,1.23749,2424.0,2423.9,2.90532324]
[1750480988209,2.61667,2424.1,2423.9,2.90532324]
[1750480989109,1.23749,2424.0,2423.9,2.90532324]
[1750480989311,2.61667,2424.1,2423.9,2.90532324]
[1750480989608,1.23749,2424.0,2423.9,2.90532324]
[1750480990015,1.3792,2424.1,2423.9,2.90532324]
[1750480990216,2.61669,2424.1,2423.9,2.90532324]
[1750480990511,1.23749,2424.0,2423.9,2.90532324]
[1750480991714,1.23749,2424.0,2423.9,1.66780324]
[1750480992618,2.61667,2424.1,2423.9,2.90534324]
[1750480993113,2.61667,2424.1,2424.0,1.23749]
[1750480994016,2.61667,2424.1,2423.9,2.90531324]
[1750480994216,1.23749,2424.0,2423.9,2.90531324]
[1750480995709,1.23749,2424.0,2423.9,1.66780324]
[1750480998019,1.23749,2424.0,2423.9,2.90534324]
[1750480998817,1.23749,2424.0,2423.9,1.66780324]
[1750480999518,2.61668,2424.1,2423.9,2.90534324]
[1750481001213,2.61668,2424.1,2424.0,1.23749]
[1750481001710,1.23749,2424.0,2423.9,2.90531324]
[1750481002124,2.61668,2424.1,2423.9,2.90531324]
[1750481002422,1.23749,2424.0,2423.9,2.90531324]
[1750481005326,1.23749,2424.0,2423.9,1.66780324]
[1750481005821,1.23749,2424.0,2423.9,2.90534324]
[1750481007631,1.23749,2424.0,2423.9,1.66780324]
[1750481008633,1.23749,2424.0,2423.9,2.90534324]
[1750481011631,3.2078,2424.2,2423.9,1.66780324]
[1750481011826,1.23742,2424.2,2424.1,1.66780324]
[1750481012130,2.45627711,2424.2,2424.1,1.66780324]
[1750481012332,2.45627711,2424.2,2424.1,2.34610324]
[1750481014729,5.67760458,2424.8,2424.1,13.59470648]
[1750481014934,2.45599722,2424.7,2424.6,1.66780324]
[1750481015127,3.86009722,2424.7,2424.6,1.66780324]
[1750481015326,2.62291722,2424.7,2424.6,1.66780324]
[1750481015629,2.62291722,2424.7,2424.6,2.90499324]
[1750481015830,1.21881722,2424.7,2424.6,2.90499324]
[1750481016428,3.2078,2424.8,2424.7,1.23714]
[1750481016733,3.2078,2424.8,2424.6,2.90496324]
[1750481016932,3.2078,2424.8,2424.6,3.61836507]
[1750481017434,4.4449,2424.8,2424.6,3.61836507]
[1750481017736,1.89617,2424.9,2424.6,3.61836507]
[1750481017926,3.25717,2424.9,2424.7,1.23713]
[1750481018133,1.23709,2424.8,2424.6,4.27426507]
[1750481019029,2.59807,2424.9,2424.7,1.23714]
[1750481019437,2.59807,2424.9,2424.8,0.6603]
[1750481021427,1.361,2424.9,2424.6,6.373]
[1750481021737,1.23714,2424.7,2424.6,6.373]
[1750481022233,2.59464,2424.7,2424.6,6.373]
[1750481026331,1.23721,2424.6,2424.4,5.10097]
[1750481026533,2.52851,2424.6,2424.5,6.372]
[1750481027638,2.52851,2424.6,2424.4,5.10097]
[1750481027842,2.52851,2424.6,2424.5,1.23724]
[1750481028339,2.52851,2424.6,2424.5,6.372]
[1750481030133,1.23724,2424.5,2424.4,3.8637]
[1750481033342,1.23724,2424.5,2424.4,0.6559]
[1750481036542,2.52004,2424.5,2424.4,0.6559]
[1750481036843,3.20454,2424.5,2424.4,0.6559]
[1750481041046,1.23729,2424.4,2424.3,6.372]
[1750481041252,1.23734,2424.3,2424.2,0.7065]
[1750481041450,2.54992,2424.4,2424.2,7.0785]
[1750481041759,2.54992,2424.4,2424.3,1.23734]
[1750481042646,2.54992,2424.4,2424.2,8.31586]
[1750481043645,1.3126,2424.4,2424.3,1.23734]
[1750481043952,1.23726,2424.5,2424.3,1.23734]
[1750481044852,1.23729,2424.4,2424.3,2.904671]
[1750481045551,1.23727,2424.5,2424.3,2.904671]
[1750481046855,1.23727,2424.5,2424.3,1.23734]
[1750481047057,1.2978,2424.6,2424.2,9.46045068]
[1750481047251,2.38195068,2424.8,2424.6,1.23716]
[1750481047252,1.23711,2424.8,2424.6,1.23716]
[1750481047454,3.2078,2424.9,2424.7,0.6853]
[1750481047656,2.44520524,2424.8,2424.7,0.6853]
[1750481047952,3.84830524,2424.8,2424.7,0.6853]
[1750481048659,1.23719,2424.6,2424.5,6.372]
[1750481050457,1.23719,2424.6,2424.5,7.0564]
[1750481051058,4.44499,2424.6,2424.5,7.0564]
[1750481051459,1.23719,2424.6,2424.5,7.0564]
[1750481052853,1.23719,2424.6,2424.5,0.6844]
[1750481056459,2.44613117,2424.6,2424.5,0.6844]
[1750481057255,2.44595569,2424.6,2424.5,0.6844]
[1750481058861,1.23719,2424.6,2424.5,0.6844]
[1750481059363,2.44618297,2424.6,2424.5,0.6844]
[1750481062362,2.44618297,2424.6,2424.5,1.92164]
[1750481062864,2.44618297,2424.6,2424.5,0.6844]
[1750481069366,2.44618297,2424.6,2424.5,1.92164]
[1750481069664,1.20899297,2424.6,2424.5,1.92164]
[1750481084379,2.44618297,2424.6,2424.5,1.92164]
[1750481084878,3.75298297,2424.6,2424.5,1.92164]
[1750481086279,2.51579297,2424.6,2424.5,1.92164]
[1750481087479,3.75298297,2424.6,2424.5,1.23724]
[1750481089181,2.51579297,2424.6,2424.5,1.23724]
[1750481094392,3.75298297,2424.6,2424.5,1.23724]
[1750481095695,2.51579297,2424.6,2424.5,1.23724]
[1750481095995,3.75298297,2424.6,2424.5,1.23724]
[1750481099698,2.51579297,2424.6,2424.5,1.23724]
[1750481100598,3.75298297,2424.6,2424.5,1.23724]
[1750481101494,1.20899297,2424.6,2424.5,1.23724]
[1750481105199,2.44618297,2424.6,2424.5,1.23724]
[1750481106001,1.20899297,2424.6,2424.5,1.23724]
[1750481106494,3.77858297,2424.6,2424.5,1.23724]
[1750481106695,2.54139297,2424.6,2424.5,1.23724]
[1750481109698,1.20899297,2424.6,2424.5,1.23724]
[1750481114609,2.44618297,2424.6,2424.5,1.23724]
[1750481114810,2.44618297,2424.6,2424.4,9.97807855]
[1750481115011,1.23719,2424.6,2424.5,1.23724]
[1750481115206,2.44300125,2424.6,2424.5,1.23724]
[1750481115803,1.20581125,2424.6,2424.5,1.23724]
[1750481128818,2.53351125,2424.6,2424.5,1.23724]
[1750481130027,3.77070125,2424.6,2424.5,1.23724]
[1750481130225,3.77070125,2424.6,2424.4,2.37281855]
[1750481130419,5.65016041,2424.5,2424.3,7.60532]
[1750481130729,6.37236,2424.5,2424.3,7.60532]
[1750481130928,1.2847,2424.4,2424.3,7.60532]
[1750481135730,1.2847,2424.4,2424.3,9.27253855]
[1750481136928,0.6426,2424.5,2424.4,1.23729]
[1750481137233,1.84802767,2424.5,2424.4,1.23729]
[1750481137434,3.22032767,2424.5,2424.4,1.23729]
[1750481137625,4.45756767,2424.5,2424.4,1.90209]
[1750481138535,3.81496767,2424.5,2424.4,1.90209]
[1750481138724,3.81496767,2424.5,2424.4,0.6648]
[1750481139535,1.23729,2424.4,2424.3,7.60531]
[1750481139737,2.62731,2424.4,2424.2,6.364]
[1750481140437,2.62731,2424.4,2424.3,1.23734]
[1750481140637,2.62731,2424.4,2424.2,7.60136]
[1750481141137,1.39,2424.3,2424.2,7.60136]
[1750481141739,2.62734,2424.3,2424.2,7.60136]
[1750481142032,1.23742,2424.2,2424.0,8.94495]
[1750481142237,2.52812,2424.2,2424.0,8.94495]
[1750481142738,2.52812,2424.2,2424.1,1.23744]
[1750481144347,2.52812,2424.2,2424.0,8.94496]
[1750481150452,1.23744,2424.1,2424.0,8.94496]
[1750481151255,1.23744,2424.1,2424.0,0.6648]
[1750481151646,1.2376,2423.8,2423.6,4.12353628]
[1750481151840,1.2377,2423.6,2423.5,0.7022]
[1750481152250,2.6361,2423.6,2423.5,0.7022]
[1750481152450,1.3984,2423.6,2423.5,1.93995]
[1750481152651,1.3984,2423.6,2423.5,0.7022]
[1750481153552,2.6361,2423.6,2423.5,0.7022]
[1750481153856,2.6361,2423.6,2423.5,1.0279613]
[1750481156457,2.6361,2423.6,2423.5,0.7022]
[1750481160248,2.6361,2423.6,2422.4,1.56968371]
[1750481160249,1.23818,2422.7,2422.4,1.56968371]
[1750481160453,3.2078,2422.7,2422.5,0.7103]
[1750481160758,3.2078,2422.7,2422.5,3.61576855]
[1750481160956,3.2078,2422.7,2422.5,3.61574855]
[1750481161861,3.2078,2422.7,2422.6,1.23821]
[1750481162161,3.2078,2422.7,2422.5,3.61574855]
[1750481162560,3.2078,2422.7,2422.6,1.23821]
[1750481163658,3.2078,2422.7,2422.5,1.94853]
[1750481163864,4.44596,2422.7,2422.5,1.94853]
[1750481164066,1.23821,2422.6,2422.5,0.7103]
[1750481164660,1.23833,2422.4,2422.3,6.367]
[1750481164965,1.23833,2422.4,2422.3,7.0591]
[1750481167269,1.23829,2422.5,2422.3,7.0591]
[1750481167567,2.59529,2422.5,2422.3,7.0591]
[1750481167969,2.59529,2422.5,2422.3,8.29746]
[1750481169570,2.59529,2422.5,2422.3,1.93046]
[1750481170767,1.357,2422.5,2422.4,1.23831]
[1750481170970,4.44598,2422.7,2422.5,1.23824]
[1750481171268,3.2078,2422.7,2422.6,0.06847599]
[1750481171470,4.44596,2422.7,2422.6,0.06847599]
[1750481183575,1.23816,2422.7,2422.6,0.06847599]
[1750481183877,4.44596,2422.7,2422.6,0.06847599]
[1750481188377,5.65175433,2422.7,2422.6,0.06847599]
[1750481191180,6.95845433,2422.7,2422.6,0.06847599]
[1750481192981,1.23831,2422.4,2422.3,0.6921]
[1750481193177,1.23853,2422.0,2421.8,1.2386]
[1750481193381,1.23857,2421.9,2421.8,7.44647177]
[1750481193781,1.23854,2422.0,2421.8,7.44647177]
[1750481193982,1.23854,2422.0,2421.8,8.68506177]
[1750481194184,1.23857,2421.9,2421.8,7.44647177]
[1750481194583,1.23857,2421.9,2421.8,0.97947177]
[1750481194974,2.65867,2421.9,2421.8,0.97947177]
[1750481195585,2.65867,2421.9,2421.8,0.6535]
[1750481200786,1.23857,2421.9,2421.8,0.6535]
[1750481204285,3.2078,2422.1,2421.8,0.6535]
[1750481204486,1.23857,2421.9,2421.8,0.6535]
[1750481204887,3.2078,2422.1,2421.8,3.04075204]
[1750481205081,4.4463,2422.1,2421.9,1.23853]
[1750481205281,4.4463,2422.1,2422.0,1.23852]
[1750481205481,4.4463,2422.1,2421.8,4.37765204]
[1750481205482,4.4463,2422.1,2421.9,1.23853]
[1750481206088,1.23852,2422.0,2421.9,1.23853]
[1750481206797,3.2078,2422.1,2421.9,1.23853]
[1750481207390,1.3797,2422.3,2422.0,1.23852]
[1750481207688,1.23841,2422.2,2422.1,0.6597]
[1750481208395,3.2078,2422.4,2422.1,1.89813]
[1750481208396,1.2384,2422.3,2422.1,1.89813]
[1750481209180,1.2384,2422.3,2422.2,0.6709]
[1750481209386,1.2384,2422.3,2422.2,1.90931]
[1750481209583,1.2384,2422.3,2422.2,0.6709]
[1750481209784,3.62565204,2422.3,2422.2,0.6709]
[1750481209985,1.23841,2422.2,2422.1,0.6597]
[1750481221695,2.61941,2422.2,2422.1,0.6597]
[1750481223397,1.23841,2422.2,2422.1,0.6597]
[1750481223805,1.23837,2422.3,2422.1,0.6597]
[1750481224101,3.2078,2422.4,2422.1,0.6597]
[1750481224102,1.23841,2422.2,2422.1,0.6597]
[1750481225602,1.92651,2422.2,2422.1,0.6597]
[1750481225910,3.21331,2422.2,2422.1,0.6597]
[1750481226096,3.21331,2422.2,2422.1,0.72817599]
[1750481226296,1.9749,2422.2,2422.1,1.96663599]
[1750481226698,3.21331,2422.2,2422.1,0.72817599]
[1750481228303,3.21331,2422.2,2422.1,1.96663599]
[1750481228506,1.2868,2422.2,2422.1,1.96663599]
[1750481228802,1.23836,2422.3,2422.1,0.72817599]
[1750481229195,2.54446,2422.3,2422.1,0.72817599]
[1750481229699,2.54446,2422.3,2422.1,1.96660599]
[1750481230006,2.54446,2422.3,2422.2,1.23841]
[1750481230304,3.75235447,2422.3,2422.2,1.23841]
[1750481230599,3.75235447,2422.3,2422.1,1.96661599]
[1750481230803,1.3393,2422.2,2422.1,1.96661599]
[1750481231302,2.57771,2422.2,2422.1,1.96661599]
[1750481233396,1.3393,2422.2,2422.1,1.96661599]
[1750481234210,5.12731,2422.4,2422.2,1.23839]
[1750481234512,2.51793898,2422.3,2422.2,1.23839]
[1750481234705,3.75629898,2422.3,2422.2,1.23839]
[1750481235506,2.51793898,2422.3,2422.2,1.23839]
[1750481236005,3.75629898,2422.3,2422.2,1.23839]
[1750481238208,3.75629898,2422.3,2422.1,1.96659599]
[1750481238408,2.55206,2422.3,2422.2,1.23841]
[1750481238610,3.7563403,2422.3,2422.2,1.23841]
[1750481240211,3.7563403,2422.3,2422.2,1.30688599]
[1750481242512,2.5179803,2422.3,2422.2,1.30688599]
[1750481242713,3.7563403,2422.3,2422.2,1.30688599]
[1750481243414,3.7563403,2422.3,2422.2,0.06847599]
[1750481250823,5.42697496,2422.3,2422.2,0.06847599]
[1750481253218,5.42697496,2422.3,2422.2,1.30688599]
[1750481253715,5.42697496,2422.3,2422.2,0.06847599]
[1750481256120,5.42697496,2422.3,2422.2,1.30688599]
[1750481256921,5.42697496,2422.3,2422.2,0.06847599]
[1750481259620,5.42697496,2422.3,2421.7,4.77659901]
[1750481259621,20.5573224,2422.3,2421.2,3.2078]
[1750481259922,3.2078,2421.8,2421.5,1.23875]
[1750481260122,27.5419503,2421.7,2421.6,0.641]
[1750481260418,30.55808496,2421.7,2421.6,0.97641842]
[1750481260623,30.55808496,2421.7,2421.6,0.641]
[1750481261119,1.23879,2421.5,2421.3,1.91325]
[1750481261336,2.90942466,2421.5,2421.3,2.55425]
[1750481262024,2.90942466,2421.5,2421.3,1.3154]
[1750481262426,1.3179,2421.4,2421.3,2.55427]
[1750481262926,1.3179,2421.4,2421.3,1.3154]
[1750481264020,1.3179,2421.4,2421.3,2.55427]
[1750481264220,1.3179,2421.4,2421.3,1.3154]
[1750481264427,1.3179,2421.4,2421.3,0.641]
[1750481265728,2.55672,2421.4,2421.3,0.641]
[1750481266526,3.70600133,2421.4,2421.1,7.69396]
[1750481266732,1.3633,2421.3,2421.1,8.36266]
[1750481267033,1.3633,2421.3,2421.2,1.23892]
[1750481267529,1.3633,2421.3,2421.2,1.57304436]
[1750481269536,1.23881,2421.5,2421.3,1.23884]
[1750481270025,2.64021,2421.5,2421.3,1.23884]
[1750481272839,2.38810133,2421.6,2421.4,1.23882]
[1750481273024,3.62686133,2421.6,2421.5,0.6944]
[1750481273335,4.91956133,2421.6,2421.5,0.6944]
[1750481275235,30.01656133,2421.6,2421.5,0.6944]
[1750481276423,1.23882,2421.4,2421.3,1.23884]
[1750481276634,1.23882,2421.4,2421.3,1.93254]
[1750481278029,2.56969,2421.5,2421.4,1.23882]
[1750481278231,2.56969,2421.5,2421.3,1.93252]
[1750481278634,1.23882,2421.4,2421.3,1.93252]
[1750481279935,2.56971,2421.5,2421.3,1.93252]
[1750481280132,1.23882,2421.4,2421.3,1.93252]
[1750481281326,2.5697,2421.5,2421.3,1.93252]
[1750481282039,1.23882,2421.4,2421.3,1.93252]
[1750481282241,2.56971,2421.5,2421.3,1.93252]
[1750481284036,1.23882,2421.4,2421.3,1.93252]
[1750481284236,1.3309,2421.5,2421.3,1.93252]
[1750481284437,1.23882,2421.4,2421.3,1.23882]
[1750481285335,2.5697,2421.5,2421.3,1.23882]
[1750481285540,1.23882,2421.4,2421.3,1.23882]
[1750481285842,2.56971,2421.5,2421.3,1.30729599]
[1750481286738,1.23882,2421.4,2421.3,1.30729599]
[1750481287640,2.5697,2421.5,2421.4,1.23882]
[1750481287836,2.5697,2421.5,2421.3,1.30731599]
[1750481288037,1.23882,2421.4,2421.3,1.30731599]
[1750481288946,1.23882,2421.4,2421.3,0.06847599]
[1750481289640,4.92642133,2421.4,2421.3,0.06847599]
[1750481293444,6.12858585,2421.4,2421.3,0.06847599]
[1750481294149,4.92642133,2421.4,2421.3,0.06847599]
[1750481294443,6.12860292,2421.4,2421.3,0.06847599]
[1750481294848,5.4123427,2421.4,2421.3,0.06847599]
[1750481296852,5.4123427,2421.4,2421.3,1.30734599]
[1750481296853,4.1735227,2421.4,2421.3,1.30734599]
[1750481297158,5.4123427,2421.4,2421.3,1.30734599]
[1750481298757,4.1735227,2421.4,2421.3,1.30734599]
[1750481299061,5.4123427,2421.4,2421.3,1.30734599]
[1750481299366,5.4123427,2421.4,2421.3,0.06847599]
[1750481315068,5.4123427,2421.4,2421.3,5.99e-06]
[1750481315273,20.97685441,2421.4,2421.3,5.99e-06]
[1750481315769,18.51118381,2421.4,2421.3,5.99e-06]
[1750481316272,20.97543089,2421.4,2421.3,5.99e-06]
[1750481316673,18.51118381,2421.4,2421.3,5.99e-06]
[1750481316875,17.55673514,2421.4,2421.3,5.99e-06]
[1750481318776,1.23923,2420.6,2420.5,0.6556]
[1750481318979,28.68946355,2420.6,2420.5,0.6556]
[1750481320275,30.02726355,2420.6,2420.5,0.6556]
[1750481323778,27.63803,2420.6,2420.5,0.6556]
[1750481323979,25.061,2420.6,2420.5,0.6556]
[1750481324279,26.30023,2420.6,2420.5,0.6556]
[1750481324580,26.30123,2420.6,2420.5,0.6556]
[1750481324777,25.062,2420.6,2420.5,1.89488]
[1750481324975,26.30323,2420.6,2420.5,0.6556]
[1750481329587,26.30323,2420.6,2420.5,0.72407599]
[1750481331383,26.29123,2420.6,2420.5,0.72407599]
[1750481331585,26.29023,2420.6,2420.5,0.72407599]
[1750481331882,26.29023,2420.6,2420.5,1.96335599]
[1750481332185,1.23921,2420.7,2420.5,1.96335599]
[1750481332483,25.049,2420.6,2420.5,1.96335599]
[1750481337288,25.049,2420.6,2420.5,0.72407599]
[1750481337289,26.28823,2420.6,2420.5,0.72407599]
[1750481337585,27.70323,2420.6,2420.5,0.72407599]
[1750481350795,29.37609144,2420.6,2420.5,0.72407599]
[1750481351186,4.32709144,2420.6,2420.5,0.72407599]
[1750481351490,29.34109144,2420.6,2420.5,0.72407599]
[1750481354589,28.10186144,2420.6,2420.5,1.96335599]
[1750481354791,28.09886144,2420.6,2420.5,1.96335599]
[1750481354995,29.33809144,2420.6,2420.5,0.72407599]
[1750481355587,4.32709144,2420.6,2420.5,0.72407599]
[1750481360100,4.98199144,2420.6,2420.5,0.06847599]
[1750481364310,6.18735312,2420.6,2420.5,0.06847599]
[1750481366420,31.19735312,2420.6,2420.5,0.06847599]
[1750481366804,1.23954,2420.0,2419.9,3.8565]
[1750481367112,2.91240144,2420.0,2419.9,3.8565]
[1750481367511,2.91240144,2420.0,2419.9,0.6487]
[1750481368910,1.23954,2420.0,2419.9,0.6487]
[1750481369709,1.23954,2420.0,2419.9,0.98435323]
[1750481370618,3.78197991,2420.2,2419.9,0.98435323]
[1750481370818,26.4031,2420.2,2420.0,1.23952]
[1750481371115,27.64255,2420.2,2420.0,1.23952]
[1750481371511,27.64255,2420.2,2419.9,2.22391323]
[1750481372416,1.23949,2420.1,2419.9,2.22391323]
[1750481373418,1.23954,2420.0,2419.9,0.98435323]
[1750481373620,1.23951,2420.1,2419.9,0.98435323]
[1750481374117,1.23951,2420.1,2419.9,2.22393323]
[1750481374722,27.64257,2420.2,2419.9,2.22393323]
[1750481375018,1.23951,2420.1,2419.9,0.98435323]
[1750481375318,1.23954,2420.0,2419.9,1.05282922]
[1750481376020,1.23954,2420.0,2419.9,7.45182922]
[1750481376620,1.23954,2420.0,2419.9,1.05282922]
[1750481382225,1.23954,2420.0,2419.9,0.71717599]
[1750481382519,4.44734,2420.0,2419.9,0.71717599]
[1750481383222,29.46134,2420.0,2419.9,0.71717599]
[1750481383422,29.46134,2420.0,2419.9,0.06847599]
[1750481384123,31.85221991,2420.0,2419.9,0.06847599]
[1750481393230,33.05423022,2420.0,2419.9,0.06847599]
[1750481395033,1.23969,2419.7,2419.6,3.2078]
[1750481397238,1.23974,2419.6,2419.5,1.57549166]
[1750481397439,1.23974,2419.6,2419.5,0.33573166]
[1750481397638,1.23974,2419.6,2419.4,7.63982]
[1750481397840,25.017,2419.8,2419.4,7.63982]
[1750481398040,1.23974,2419.6,2419.4,7.63982]
[1750481399240,1.23974,2419.6,2419.4,6.73602845]
[1750481399441,1.23974,2419.6,2419.4,7.97586845]
[1750481400338,1.2398,2419.5,2419.4,0.99602845]
[1750481400640,2.6603,2419.5,2419.4,7.39602845]
[1750481401334,2.6603,2419.5,2419.4,0.33602845]
[1750481401638,3.2078,2419.7,2419.4,1.23982]
[1750481401945,1.23975,2419.6,2419.3,1.89987]
[1750481402240,1.23975,2419.6,2419.4,1.23985]
[1750481402540,1.23975,2419.6,2419.4,1.57288867]
[1750481403136,3.2078,2419.7,2419.4,0.33303867]
[1750481403339,1.4205,2419.8,2419.5,6.4]
[1750481403539,1.4205,2419.8,2419.5,7.0466]
[1750481403742,4.44749,2419.7,2419.6,0.6633]
[1750481404036,1.23969,2419.7,2419.5,7.0466]
[1750481404232,2.66017,2419.8,2419.5,8.94968]
[1750481404437,1.4205,2419.8,2419.6,1.23972]
[1750481405044,2.66014,2419.8,2419.6,1.23972]
[1750481405441,1.4205,2419.8,2419.5,1.3099]
[1750481405746,1.328,2419.7,2419.5,1.3099]
[1750481406043,1.328,2419.7,2419.5,2.54967]
[1750481406440,2.5677,2419.7,2419.5,1.3099]
[1750481406838,1.3303,2419.6,2419.5,2.54967]
[1750481408147,1.3303,2419.6,2419.5,0.6633]
[1750481408547,1.3303,2419.6,2419.5,1.9031]
[1750481408944,1.23967,2419.8,2419.5,1.90309]
[1750481409245,1.23962,2419.9,2419.5,1.90309]
[1750481409447,2.52982,2419.9,2419.5,1.90309]
[1750481409947,1.23965,2419.8,2419.5,1.90309]
[1750481410248,1.23965,2419.8,2419.6,1.23974]
[1750481410446,3.21222,2419.9,2419.6,1.23974]
[1750481412050,3.21222,2419.9,2419.5,7.0633]
[1750481412439,1.2962,2419.8,2419.4,0.32439774]
[1750481412643,2.39087991,2419.6,2419.2,3.8526]
[1750481412844,3.63062991,2419.6,2419.3,1.23988]
[1750481413045,1.9627,2419.5,2419.2,5.09252]
[1750481413242,3.20251,2419.5,2419.2,5.42574417]
[1750481413550,1.2962,2419.4,2419.3,1.2399]
[1750481414251,1.2962,2419.4,2419.3,4.4477]
[1750481415958,2.64311,2419.7,2419.5,1.23979]
[1750481416459,2.64311,2419.7,2419.4,1.23982]
[1750481416961,2.64311,2419.7,2419.5,0.6918]
[1750481417163,1.23974,2419.6,2419.5,0.6918]
[1750481419156,1.23974,2419.6,2419.5,1.9316]
[1750481419856,2.64313,2419.7,2419.5,1.9316]
[1750481420061,1.23974,2419.6,2419.5,1.9316]
[1750481421063,1.4034,2419.7,2419.5,1.9316]
[1750481421264,1.23974,2419.6,2419.5,1.9316]
[1750481421760,2.64313,2419.7,2419.5,1.9316]
[1750481422058,1.23974,2419.6,2419.5,1.9316]
[1750481422664,2.64312,2419.7,2419.5,1.9316]
[1750481422960,1.4034,2419.7,2419.6,1.23974]
[1750481423163,3.09867,2420.2,2419.6,3.2078]
[1750481423164,3.2078,2420.2,2419.6,3.2078]
[1750481423361,1.23934,2420.4,2420.1,1.23946]
[1750481423554,1.20137286,2420.3,2420.2,0.7067]
[1750481423753,2.62074,2420.4,2420.2,0.7067]
[1750481424162,1.3814,2420.3,2420.2,0.7067]
[1750481424464,2.62079,2420.3,2420.2,0.7067]
[1750481425167,5.01166991,2420.3,2420.2,0.7067]
[1750481426163,3.77227991,2420.3,2419.6,3.9063]
[1750481426367,3.63037991,2420.1,2419.8,1.23962]
[1750481426759,1.3021,2420.0,2419.8,1.23961]
[1750481427864,2.54164,2420.0,2419.8,1.23961]
[1750481428267,2.54164,2420.0,2419.7,1.88366]
[1750481428770,1.3021,2420.0,2419.7,1.88366]
[1750481429274,1.3021,2420.0,2419.8,1.23961]
[1750481429971,2.54164,2420.0,2419.8,1.23961]
[1750481431569,1.3021,2420.0,2419.7,0.644]
[1750481431771,2.54167,2420.0,2419.7,1.88366]
[1750481432475,2.54167,2420.0,2419.8,1.23964]
[1750481432873,1.23962,2419.9,2419.7,1.88365]
[1750481433074,2.54167,2420.0,2419.7,8.28165]
[1750481433372,0.7043,2419.9,2419.7,8.28165]
[1750481433671,0.7043,2419.9,2419.8,1.23964]
[1750481433672,2.0278,2419.9,2419.8,1.23964]
[1750481434972,1.3235,2419.9,2419.8,1.23964]
[1750481439679,5.00988991,2420.1,2419.9,1.23957]
[1750481439868,4.44726,2420.2,2420.0,1.23954]
[1750481440368,5.81906,2420.2,2420.0,1.23954]
[1750481440578,5.81906,2420.2,2419.9,1.23955]
[1750481441076,5.81906,2420.2,2420.0,1.91773]
[1750481441263,1.3718,2420.1,2420.0,1.91773]
[1750481441778,1.3718,2420.1,2420.0,0.6782]
[1750481442879,1.3718,2420.1,2420.0,1.91774]
[1750481443679,1.3718,2420.1,2420.0,0.6782]
[1750481444277,2.61129,2420.1,2420.0,0.6782]
[1750481445680,1.23949,2420.1,2420.0,0.6782]
[1750481448481,2.39087991,2420.3,2420.0,0.6782]
[1750481448783,1.3604,2420.3,2420.0,0.6782]
[1750481449080,1.23949,2420.1,2420.0,0.6782]
[1750481449780,1.23947,2420.2,2420.0,1.91774]
[1750481451373,3.2078,2420.5,2420.0,0.6782]
[1750481451578,3.2078,2420.5,2420.1,1.89086]
[1750481451579,1.23939,2420.3,2420.1,1.89086]
[1750481451781,1.23944,2420.2,2420.1,7.0494]
[1750481453982,1.23944,2420.2,2420.1,8.28889]
[1750481454479,1.23944,2420.2,2420.1,7.0494]
[1750481455683,1.23944,2420.2,2420.1,8.28889]
[1750481455886,1.23942,2420.3,2420.1,8.28889]
[1750481456183,1.23944,2420.2,2420.1,7.0494]
[1750481459380,1.23944,2420.2,2420.1,8.28889]
[1750481460288,1.23944,2420.2,2420.1,7.0494]
[1750481460584,1.23944,2420.2,2420.1,8.28889]
[1750481461386,1.23944,2420.2,2420.1,7.0494]
[1750481461783,1.23941,2420.3,2420.1,8.28885]
[1750481461990,1.23941,2420.3,2420.1,8.28886]
[1750481462289,1.23944,2420.2,2420.1,8.28886]
[1750481462891,1.23942,2420.3,2420.1,8.28886]
[1750481463589,1.23942,2420.3,2420.1,8.28885]
[1750481463793,1.3055,2420.4,2420.2,1.23941]
[1750481464291,2.54483,2420.4,2420.3,0.6791]
[1750481464487,3.74499311,2420.4,2420.3,0.6791]
[1750481466975,5.41810372,2420.4,2420.3,0.6791]
[1750481468885,5.41817168,2420.4,2420.3,0.6791]
[1750481471190,5.41817168,2420.4,2420.3,1.91849]
[1750481471391,5.41664747,2420.4,2420.3,0.6791]